[Event "Chinese League Div-A Rapid 2022"]
[Site "Fuling,Chongqing"]
[Date "2022.09.18"]
[Round "10.23"]
[White "Xu, Zhihang"]
[Black "Zhang, Di"]
[Result "1/2-1/2"]
[ECO "D94"]
[WhiteElo "2489"]
[BlackElo "2108"]
[Annotator "ChessBase"]
[PlyCount "57"]
[EventDate "2022.09.07"]
[EventType "team-tourn"]
[EventCountry "CHN"]
[SourceTitle "playchess.com"]
[Source "ChessBase"]
[SourceQuality "1"]
[TimeControl "1500+10"]

1. d4 {[%emt 0:00:03]} d5 {[%emt 0:00:02]} 2. c4 {[%emt 0:00:04]} c6 {[%emt 0:00:03]} 3. Nf3 {[%emt 0:00:19]} Nf6 {[%emt 0:00:03]} 4. e3 {[%emt 0:00:11]} g6 {[%emt 0:00:04]} 5. Nc3 {[%emt 0:00:03]} Bg7 {[%emt 0:00:04]} 6. Be2 {[%emt 0:00:03]} O-O {[%emt 0:00:04]} 7. O-O {[%emt 0:00:03]} dxc4 {[%emt 0:00:13]} 8. Bxc4 {[%emt 0:00:04]} Bg4 {[%emt 0:00:03]} 9. h3 {[%emt 0:00:05]} Bxf3 {[%emt 0:00:05]} 10. Qxf3 {[%emt 0:00:02]} Nbd7 {[%emt 0:00:03]} 11. a4 {[%emt 0:00:04]} e5 {[%emt 0:00:13]} 12. a5 {[%emt 0:00:04]} b5 {[%emt 0:00:07]} 13. axb6 {[%emt 0:00:13]} Nxb6 {[%emt 0:00:03]} 14. dxe5 {[%emt 0:00:25]} Nxc4 {[%emt 0:00:08]} 15. exf6 {[%emt 0:00:03]} Qxf6 {[%emt 0:00:07]} 16. Qxf6 {[%emt 0:00:03]} Bxf6 {[%emt 0:00:02]} 17. Ra6 {[%emt 0:00:21]} Rfc8 {[%emt 0:00:29]} 18. Rd1 {[%emt 0:00:29]} Kg7 {[%emt 0:09:08]} 19. Kf1 {[%emt 0:00:53]} Rd8 {[%emt 0:02:03]} 20. Rxd8 {[%emt 0:00:19]} Rxd8 {[%emt 0:00:03]} 21. Ke2 {[%emt 0:00:10]} Rd7 {[%emt 0:01:22]} 22. b3 {[%emt 0:00:48]} Nb6 {[%emt 0:00:40]} 23. Ne4 {[%emt 0:00:20]} Be7 {[%emt 0:00:10]} 24. Bb2+ {[%emt 0:00:06]} f6 {[%emt 0:00:14]} 25. Bd4 {[%emt 0:00:13]} Bd8 {[%emt 0:00:41]} 26. Nc5 {[%emt 0:00:26]} Re7 {[%emt 0:00:07]} 27. Na4 {[%emt 0:00:07]} Rb7 {[%emt 0:00:04]} 28. Nc5 {[%emt 0:00:01]} Re7 {[%emt 0:00:02]} 29. Na4 {[%emt 0:00:02]} 1/2-1/2

[Event "Chinese League Div-A Rapid 2022"]
[Site "Fuling,Chongqing"]
[Date "2022.09.18"]
[Round "10.24"]
[White "Wang, Yu A."]
[Black "Zhai, Mo"]
[Result "1/2-1/2"]
[ECO "C47"]
[WhiteElo "2271"]
[BlackElo "2374"]
[Annotator "ChessBase"]
[PlyCount "48"]
[EventDate "2022.09.07"]
[EventType "team-tourn"]
[EventCountry "CHN"]
[SourceTitle "playchess.com"]
[Source "ChessBase"]
[SourceQuality "1"]
[TimeControl "1500+10"]

1. e4 {[%emt 0:00:01]} e5 {[%emt 0:00:06]} 2. Nf3 {[%emt 0:00:02]} Nc6 {[%emt 0:00:02]} 3. Nc3 {[%emt 0:00:05]} Nf6 {[%emt 0:00:05]} 4. d4 {[%emt 0:00:01]} exd4 {[%emt 0:00:05]} 5. Nxd4 {[%emt 0:00:02]} Bb4 {[%emt 0:00:05]} 6. Nxc6 {[%emt 0:00:02]} bxc6 {[%emt 0:00:04]} 7. Bd3 {[%emt 0:00:01]} O-O {[%emt 0:00:08]} 8. O-O {[%emt 0:00:03]} d5 {[%emt 0:00:05]} 9. exd5 {[%emt 0:00:01]} cxd5 {[%emt 0:00:02]} 10. Bg5 {[%emt 0:00:06]} c6 {[%emt 0:00:08]} 11. Qf3 {[%emt 0:00:18]} Bd6 {[%emt 0:00:36]} 12. Bxf6 {[%emt 0:00:24]} Qxf6 {[%emt 0:00:03]} 13. Qxf6 {[%emt 0:00:02]} gxf6 {[%emt 0:00:01]} 14. Ne2 {[%emt 0:00:35]} a5 {[%emt 0:02:10]} 15. Nd4 {[%emt 0:02:18]} c5 {[%emt 0:02:20]} 16. Nf5 {[%emt 0:00:19]} Bxf5 {[%emt 0:00:13]} 17. Bxf5 {[%emt 0:00:02]} Rab8 {[%emt 0:00:31]} 18. b3 {[%emt 0:01:54]} Rfe8 {[%emt 0:00:07]} 19. Rfe1 {[%emt 0:01:45]} h6 {[%emt 0:00:22]} 20. h3 {[%emt 0:00:15]} Kf8 {[%emt 0:00:12]} 21. Kf1 {[%emt 0:00:01]} Rxe1+ {[%emt 0:00:10]} 22. Rxe1 {[%emt 0:00:02]} Re8 {[%emt 0:00:05]} 23. Rxe8+ {[%emt 0:00:02]} Kxe8 {[%emt 0:00:02]} 24. Ke2 {[%emt 0:00:01]} Ke7 {[%emt 0:00:25]} 1/2-1/2

[Event "Chinese League Div-A Rapid 2022"]
[Site "Fuling,Chongqing"]
[Date "2022.09.18"]
[Round "10.25"]
[White "Guo, Weibao"]
[Black "Yan, Tianqi"]
[Result "1/2-1/2"]
[ECO "D30"]
[WhiteElo "1907"]
[BlackElo "2188"]
[Annotator "TA"]
[PlyCount "57"]
[EventDate "2022.09.07"]
[EventType "team-tourn"]
[EventCountry "CHN"]
[SourceTitle "playchess.com"]
[Source "ChessBase"]
[SourceQuality "1"]
[TimeControl "1500+10"]

{[%evp 9,57,9,20,21,21,18,26,17,26,29,36,-19,43,15,18,21,39,8,21,25,21,15,16,12,7,2,12,0,0,0,0,0,0,0,26,0,0,0,7,0,0,0,0,0,7,0,0,0,0,0]} 1. d4 {[%emt 0:00:02]} Nf6 {[%emt 0:00:02]} 2. c4 {[%emt 0:00:03]} e6 {[%emt 0:00:03]} 3. Nf3 {[%emt 0:00:02]} d5 {[%emt 0:00:04]} 4. e3 {[%emt 0:00:05][%cal Be2e3,Be3e4][%mdl 32]} c5 {[%emt 0:00:49]} 5. cxd5 {[%emt 0:01:13]} Nxd5 {[%emt 0:00:18]} 6. e4 {[%emt 0:00:40] D30: Queen's Gambit Declined: Systems without Nc3.} Nf6 {[%emt 0:00:22]} 7. Nc3 {[%emt 0:00:01]} cxd4 {[%emt 0:00:12]} 8. Qxd4 {[%emt 0:00:03] White has an edge.} Qxd4 {[%emt 0:00:07]} 9. Nxd4 {[%emt 0:00:01] [#]} Bd7 $146 {[%emt 0:00:33]} ({Predecessor:} 9... a6 10. f3 Bb4 11. Be3 Bd7 12. O-O-O Nc6 13. Nc2 Be7 14. Be2 Rc8 15. Kb1 Nb4 {1-0 (54) Andreikin,D (2724)-Martinez Alcantara,J (2620) Chess.com INT 2021}) 10. Be3 {[%emt 0:01:52]} (10. e5 $14 Nd5 11. Nxd5 exd5 12. Nb5) 10... Nc6 {[%emt 0:00:26]} (10... Ng4 $1 $11) 11. Nxc6 {[%emt 0:01:40]} Bxc6 {[%emt 0:00:04]} 12. f3 {[%emt 0:00:02]} Nd7 {[%emt 0:00:47]} 13. Be2 {[%emt 0:01:02]} Bc5 {[%emt 0:00:13]} 14. Bxc5 {[%emt 0:00:10]} Nxc5 {[%emt 0:00:02]} 15. Kf2 {[%emt 0:01:08]} Ke7 {[%emt 0:00:15]} 16. Rhd1 {[%emt 0:00:04]} Rhd8 {[%emt 0:01:15]} 17. Rac1 {[%emt 0:01:32]} Rxd1 {[%emt 0:00:24]} 18. Rxd1 {[%emt 0:00:07]} Na4 {[%emt 0:00:06]} 19. Nxa4 {[%emt 0:00:45]} Bxa4 $11 {[%emt 0:00:03][%mdl 4096] Endgame KRB-KRB} 20. b3 {[%emt 0:00:04]} Bd7 {[%emt 0:01:00]} 21. Rc1 {[%emt 0:00:07]} Kd6 {[%emt 0:00:32] Inhibits Rc7.} 22. Ke3 {[%emt 0:00:18]} f6 {[%emt 0:00:18] The position is equal.} 23. h4 {[%emt 0:00:45]} Bc6 {[%emt 0:00:38]} 24. Rd1+ {[%emt 0:00:04]} Ke7 {[%emt 0:00:02]} 25. g3 {[%emt 0:01:08]} Rc8 {[%emt 0:00:13]} 26. Rc1 {[%emt 0:02:09]} Rd8 {[%emt 0:00:04]} 27. Rd1 {[%emt 0:00:33]} Rc8 {[%emt 0:00:02]} 28. Rc1 {[%emt 0:00:04]} Rd8 {[%emt 0:00:02]} 29. Rd1 {[%emt 0:00:02] An even fight not without its subleties.  Weighted Error Value: White=0.10 (very precise) /Black=0.07 (flawless)} 1/2-1/2

[Event "Chinese League Div-A Rapid 2022"]
[Site "Fuling,Chongqing"]
[Date "2022.09.18"]
[Round "10.26"]
[White "Zeng, Chongsheng"]
[Black "Pang, Tao"]
[Result "1-0"]
[ECO "D35"]
[WhiteElo "2597"]
[BlackElo "2427"]
[Annotator "ChessBase"]
[PlyCount "103"]
[EventDate "2022.09.07"]
[EventType "team-tourn"]
[EventCountry "CHN"]
[SourceTitle "playchess.com"]
[Source "ChessBase"]
[SourceQuality "1"]
[TimeControl "1500+10"]

1. c4 {[%emt 0:00:02]} e6 {[%emt 0:00:01]} 2. d4 {[%emt 0:00:04]} d5 {[%emt 0:00:01]} 3. Nc3 {[%emt 0:00:01]} Nf6 {[%emt 0:00:03]} 4. cxd5 {[%emt 0:00:02]} exd5 {[%emt 0:00:01]} 5. Bg5 {[%emt 0:00:01]} c6 {[%emt 0:00:02]} 6. e3 {[%emt 0:00:03]} Bf5 {[%emt 0:00:03]} 7. Qf3 {[%emt 0:00:02]} Bg6 {[%emt 0:00:01]} 8. Bxf6 {[%emt 0:00:04]} Qxf6 {[%emt 0:00:03]} 9. Qxf6 {[%emt 0:00:03]} gxf6 {[%emt 0:00:02]} 10. Nf3 {[%emt 0:00:01]} Nd7 {[%emt 0:00:12]} 11. Nh4 {[%emt 0:00:02]} Be7 {[%emt 0:01:01]} 12. Ne2 {[%emt 0:00:01]} f5 {[%emt 0:01:48]} 13. Nf3 {[%emt 0:00:01]} Bb4+ {[%emt 0:00:15]} 14. Kd1 {[%emt 0:00:01]} Nf6 {[%emt 0:00:43]} 15. Ne5 {[%emt 0:00:01]} Ne4 {[%emt 0:00:34]} 16. Nd3 {[%emt 0:00:02]} Be7 {[%emt 0:00:12]} 17. Nef4 {[%emt 0:00:29]} Bg5 {[%emt 0:02:24]} 18. Ke1 {[%emt 0:01:48]} a5 {[%emt 0:01:28]} 19. Rc1 {[%emt 0:00:50]} Ke7 {[%emt 0:00:15]} 20. Ne2 {[%emt 0:04:14]} f6 {[%emt 0:02:03]} 21. Nef4 {[%emt 0:01:38]} Nd6 {[%emt 0:00:32]} 22. Be2 {[%emt 0:00:58]} Be8 {[%emt 0:00:20]} 23. h4 {[%emt 0:01:29]} Bh6 {[%emt 0:00:01]} 24. f3 {[%emt 0:00:46]} Bd7 {[%emt 0:00:48]} 25. Kf2 {[%emt 0:00:01]} Rhe8 {[%emt 0:01:08]} 26. Nc5 {[%emt 0:02:05]} b6 {[%emt 0:01:29]} 27. Na4 {[%emt 0:00:51]} Rab8 {[%emt 0:01:06]} 28. b3 {[%emt 0:00:14]} Kf8 {[%emt 0:01:51]} 29. g3 {[%emt 0:01:00]} Bxf4 {[%emt 0:00:57]} 30. exf4 {[%emt 0:00:03]} Re7 {[%emt 0:01:13]} 31. h5 {[%emt 0:00:39]} h6 {[%emt 0:00:19]} 32. Bd3 {[%emt 0:00:02]} Be8 {[%emt 0:00:17]} 33. Rc2 {[%emt 0:00:32]} b5 {[%emt 0:00:47]} 34. Nc5 {[%emt 0:00:07]} Ra8 {[%emt 0:00:39]} 35. Re2 {[%emt 0:01:41]} Rxe2+ {[%emt 0:00:10]} 36. Kxe2 {[%emt 0:00:06]} Ra7 {[%emt 0:00:07]} 37. g4 {[%emt 0:00:35]} fxg4 {[%emt 0:00:34]} 38. fxg4 {[%emt 0:00:01]} Re7+ {[%emt 0:00:13]} 39. Kf3 {[%emt 0:00:01]} Nb7 {[%emt 0:00:26]} 40. Nxb7 {[%emt 0:01:04]} Rxb7 {[%emt 0:00:01]} 41. g5 {[%emt 0:00:57]} fxg5 {[%emt 0:01:59]} 42. fxg5 {[%emt 0:00:01]} Rf7+ {[%emt 0:00:08]} 43. Kg3 {[%emt 0:01:36]} Rg7 {[%emt 0:00:02]} 44. g6 {[%emt 0:00:10]} Re7 {[%emt 0:00:01]} 45. Kf4 {[%emt 0:01:30]} Kg7 {[%emt 0:00:03]} 46. a4 {[%emt 0:00:41]} b4 {[%emt 0:00:30]} 47. Rc1 {[%emt 0:00:19]} Kf6 {[%emt 0:00:10]} 48. Rc5 {[%emt 0:00:13]} Ra7 {[%emt 0:00:01]} 49. Bf5 {[%emt 0:00:07]} Ra8 {[%emt 0:00:07]} 50. Rc2 {[%emt 0:00:09]} Ra7 {[%emt 0:02:58]} 51. Re2 {[%emt 0:00:08]} Bd7 {[%emt 0:00:01]} 52. g7 {[%emt 0:00:34]} 1-0

[Event "Chinese League Div-A Rapid 2022"]
[Site "Fuling,Chongqing"]
[Date "2022.09.18"]
[Round "10.27"]
[White "Bu, Xiangzhi"]
[Black "Wang, Hao B"]
[Result "1-0"]
[ECO "D70"]
[WhiteElo "2709"]
[BlackElo "2165"]
[Annotator "ChessBase"]
[PlyCount "55"]
[EventDate "2022.09.07"]
[EventType "team-tourn"]
[EventCountry "CHN"]
[SourceTitle "playchess.com"]
[Source "ChessBase"]
[SourceQuality "1"]
[TimeControl "1500+10"]

1. Nf3 {[%emt 0:00:03]} Nf6 {[%emt 0:00:04]} 2. c4 {[%emt 0:00:01]} d5 {[%emt 0:00:08]} 3. cxd5 {[%emt 0:00:02]} Nxd5 {[%emt 0:00:04]} 4. d4 {[%emt 0:00:12]} g6 {[%emt 0:00:45]} 5. e4 {[%emt 0:00:02]} Nb6 {[%emt 0:00:04]} 6. Nc3 {[%emt 0:00:07]} Bg7 {[%emt 0:00:03]} 7. h3 {[%emt 0:00:18]} O-O {[%emt 0:00:06]} 8. Be2 {[%emt 0:01:17]} Nc6 {[%emt 0:01:38]} 9. Be3 {[%emt 0:02:17]} Na5 {[%emt 0:04:24]} 10. O-O {[%emt 0:00:13]} Nac4 {[%emt 0:00:20]} 11. Bc1 {[%emt 0:00:02]} c6 {[%emt 0:01:47]} 12. a4 {[%emt 0:00:02]} e5 {[%emt 0:06:35]} 13. d5 {[%emt 0:05:51]} a5 {[%emt 0:01:16]} 14. dxc6 {[%emt 0:00:15]} bxc6 {[%emt 0:00:04]} 15. b3 {[%emt 0:00:01]} Nd6 {[%emt 0:00:15]} 16. Ba3 {[%emt 0:00:02]} Nb7 {[%emt 0:00:37]} 17. Bxf8 {[%emt 0:00:12]} Qxf8 {[%emt 0:00:02]} 18. Qc2 {[%emt 0:00:05]} Nc5 {[%emt 0:00:12]} 19. Nb1 {[%emt 0:00:27]} f5 {[%emt 0:00:11]} 20. Nbd2 {[%emt 0:00:04]} Bd7 {[%emt 0:02:13]} 21. Rac1 {[%emt 0:00:47]} Ne6 {[%emt 0:00:03]} 22. Nc4 {[%emt 0:00:37]} Rb8 {[%emt 0:00:41]} 23. Ncxe5 {[%emt 0:01:39]} fxe4 {[%emt 0:02:56]} 24. Nxd7 {[%emt 0:01:07]} Nxd7 {[%emt 0:00:03]} 25. Bc4 {[%emt 0:00:41]} Ndc5 {[%emt 0:01:31]} 26. Ng5 {[%emt 0:00:02]} Qf5 {[%emt 0:00:02]} 27. Nxe6 {[%emt 0:00:01]} Nxe6 {[%emt 0:00:01]} 28. g4 {[%emt 0:00:17]} 1-0

[Event "Chinese League Div-A Rapid 2022"]
[Site "Fuling,Chongqing"]
[Date "2022.09.18"]
[Round "10.28"]
[White "Wang, Chen"]
[Black "Ma, Zhonghan"]
[Result "0-1"]
[ECO "B51"]
[WhiteElo "2476"]
[BlackElo "2485"]
[Annotator "ChessBase"]
[PlyCount "80"]
[EventDate "2022.09.07"]
[EventType "team-tourn"]
[EventCountry "CHN"]
[SourceTitle "playchess.com"]
[Source "ChessBase"]
[SourceQuality "1"]
[TimeControl "1500+10"]

1. e4 {[%emt 0:00:03]} c5 {[%emt 0:00:34]} 2. Nf3 {[%emt 0:01:22]} d6 {[%emt 0:00:08]} 3. Bb5+ {[%emt 0:00:05]} Nd7 {[%emt 0:01:15]} 4. O-O {[%emt 0:00:03]} a6 {[%emt 0:00:01]} 5. Bxd7+ {[%emt 0:00:02]} Bxd7 {[%emt 0:00:02]} 6. Re1 {[%emt 0:00:36]} Nf6 {[%emt 0:00:04]} 7. c3 {[%emt 0:01:36]} Bc6 {[%emt 0:00:39]} 8. d4 {[%emt 0:00:01]} Bxe4 {[%emt 0:00:14]} 9. Bg5 {[%emt 0:00:02]} Bd5 {[%emt 0:00:56]} 10. c4 {[%emt 0:03:47]} Bxc4 {[%emt 0:04:01]} 11. Nc3 {[%emt 0:00:01]} h6 {[%emt 0:00:58]} 12. Bxf6 {[%emt 0:00:09]} gxf6 {[%emt 0:00:04]} 13. d5 {[%emt 0:00:47]} Bb5 {[%emt 0:00:45]} 14. Nh4 {[%emt 0:04:52]} Qc7 {[%emt 0:03:16]} 15. Qh5 {[%emt 0:05:30]} Bd3 {[%emt 0:05:20]} 16. Re3 {[%emt 0:01:39]} c4 {[%emt 0:00:46]} 17. Ne4 {[%emt 0:02:48]} Bxe4 {[%emt 0:02:03]} 18. Rxe4 {[%emt 0:00:01]} Rg8 {[%emt 0:00:18]} 19. Nf5 {[%emt 0:01:54]} Rg5 {[%emt 0:00:11]} 20. Qf3 {[%emt 0:00:02]} Qd7 {[%emt 0:00:24]} 21. g4 {[%emt 0:00:01]} h5 {[%emt 0:00:13]} 22. h3 {[%emt 0:00:23]} hxg4 {[%emt 0:00:18]} 23. hxg4 {[%emt 0:00:01]} O-O-O {[%emt 0:01:11]} 24. Rae1 {[%emt 0:00:32]} Kb8 {[%emt 0:00:07]} 25. Qf4 {[%emt 0:00:34]} Rc8 {[%emt 0:00:19]} 26. f3 {[%emt 0:00:13]} Qb5 {[%emt 0:02:17]} 27. Qd2 {[%emt 0:00:34]} Qc5+ {[%emt 0:00:46]} 28. Kg2 {[%emt 0:00:32]} e6 {[%emt 0:00:11]} 29. dxe6 {[%emt 0:00:12]} fxe6 {[%emt 0:00:02]} 30. Nd4 {[%emt 0:00:05]} Rd5 {[%emt 0:00:02]} 31. Qc3 {[%emt 0:00:25]} e5 {[%emt 0:00:15]} 32. Ne6 {[%emt 0:00:03]} Qc6 {[%emt 0:00:09]} 33. Nxf8 {[%emt 0:00:06]} Rd3 {[%emt 0:00:13]} 34. Qc2 {[%emt 0:01:31]} d5 {[%emt 0:00:06]} 35. R4e3 {[%emt 0:00:11]} Rxe3 {[%emt 0:00:05]} 36. Rxe3 {[%emt 0:00:01]} Rxf8 {[%emt 0:00:01]} 37. Qf5 {[%emt 0:00:02]} Qc8 {[%emt 0:00:29]} 38. Qh7 {[%emt 0:00:03]} d4 {[%emt 0:00:03]} 39. Re2 {[%emt 0:00:30]} d3 {[%emt 0:00:34]} 40. Re1 {[%emt 0:00:09]} Qc5 {[%emt 0:00:42]} 0-1

[Event "Chinese League Div-A Rapid 2022"]
[Site "Fuling,Chongqing"]
[Date "2022.09.18"]
[Round "10.29"]
[White "Shao, Qiyu"]
[Black "Yeoh, Li Tian"]
[Result "1-0"]
[ECO "A21"]
[WhiteElo "1467"]
[BlackElo "2530"]
[Annotator "ChessBase"]
[PlyCount "81"]
[EventDate "2022.09.07"]
[EventType "team-tourn"]
[EventCountry "CHN"]
[SourceTitle "playchess.com"]
[Source "ChessBase"]
[SourceQuality "1"]
[TimeControl "1500+10"]

1. c4 {[%emt 0:00:02]} e5 {[%emt 0:00:07]} 2. Nc3 {[%emt 0:00:02]} Bb4 {[%emt 0:00:05]} 3. Nd5 {[%emt 0:00:10]} Bc5 {[%emt 0:00:07]} 4. e3 {[%emt 0:00:28]} c6 {[%emt 0:00:14]} 5. Nc3 {[%emt 0:00:05]} Qe7 {[%emt 0:00:06]} 6. Nge2 {[%emt 0:00:24]} d6 {[%emt 0:00:44]} 7. Na4 {[%emt 0:00:26]} Bb4 {[%emt 0:02:26]} 8. a3 {[%emt 0:00:13]} Ba5 {[%emt 0:00:02]} 9. b4 {[%emt 0:00:09]} Bc7 {[%emt 0:00:01]} 10. Bb2 {[%emt 0:00:02]} Be6 {[%emt 0:01:16]} 11. Rc1 {[%emt 0:00:23]} Nf6 {[%emt 0:00:37]} 12. g3 {[%emt 0:00:09]} Qd7 {[%emt 0:02:03]} 13. d4 {[%emt 0:02:32]} O-O {[%emt 0:01:28]} 14. dxe5 {[%emt 0:00:04]} dxe5 {[%emt 0:00:03]} 15. Qxd7 {[%emt 0:01:37]} Nbxd7 {[%emt 0:00:21]} 16. Bg2 {[%emt 0:00:04]} Rab8 {[%emt 0:01:28]} 17. O-O {[%emt 0:00:04]} Rfc8 {[%emt 0:00:27]} 18. h3 {[%emt 0:03:54]} b5 {[%emt 0:00:33]} 19. cxb5 {[%emt 0:00:07]} cxb5 {[%emt 0:00:01]} 20. Nac3 {[%emt 0:02:04]} Bc4 {[%emt 0:00:48]} 21. Rfe1 {[%emt 0:00:21]} Nb6 {[%emt 0:00:48]} 22. f4 {[%emt 0:01:36]} a6 {[%emt 0:01:39]} 23. Ne4 {[%emt 0:03:22]} Nfd7 {[%emt 0:06:56]} 24. N2c3 {[%emt 0:02:00]} f5 {[%emt 0:01:36]} 25. Nc5 {[%emt 0:01:00]} Nxc5 {[%emt 0:00:03]} 26. bxc5 {[%emt 0:00:01]} Nd7 {[%emt 0:00:08]} 27. Nd5 {[%emt 0:00:33]} Kf7 {[%emt 0:01:03]} 28. Nxc7 {[%emt 0:00:05]} Rxc7 {[%emt 0:00:01]} 29. c6 {[%emt 0:00:06]} Nc5 {[%emt 0:00:49]} 30. Bxe5 {[%emt 0:00:03]} Rbc8 {[%emt 0:00:02]} 31. Bxc7 {[%emt 0:00:13]} Rxc7 {[%emt 0:00:01]} 32. Red1 {[%emt 0:00:19]} Ke7 {[%emt 0:00:25]} 33. Bd5 {[%emt 0:00:52]} Nb3 {[%emt 0:00:19]} 34. Rc3 {[%emt 0:00:07]} Na5 {[%emt 0:00:03]} 35. a4 {[%emt 0:01:47]} g6 {[%emt 0:00:22]} 36. axb5 {[%emt 0:00:10]} axb5 {[%emt 0:00:05]} 37. Bxc4 {[%emt 0:00:10]} Nxc4 {[%emt 0:00:09]} 38. Rb1 {[%emt 0:00:15]} Nd6 {[%emt 0:00:18]} 39. Rc5 {[%emt 0:00:33]} Kd8 {[%emt 0:00:09]} 40. Rd1 {[%emt 0:00:02]} Ke7 {[%emt 0:00:01]} 41. Re5+ {[%emt 0:00:02]} 1-0

[Event "Chinese League Div-A Rapid 2022"]
[Site "Fuling,Chongqing"]
[Date "2022.09.18"]
[Round "10.30"]
[White "Sun, Fanghui"]
[Black "Wang, Chuqiao"]
[Result "1/2-1/2"]
[ECO "C48"]
[WhiteElo "2182"]
[BlackElo "2037"]
[Annotator "TA"]
[PlyCount "84"]
[EventDate "2022.09.07"]
[EventType "team-tourn"]
[EventCountry "CHN"]
[SourceTitle "playchess.com"]
[Source "ChessBase"]
[SourceQuality "1"]
[TimeControl "1500+10"]

{[%evp 9,84,0,0,-15,-7,-15,0,-15,19,0,95,98,72,69,71,69,70,75,75,78,80,63,64,66,108,117,112,112,114,110,108,107,114,104,106,102,103,95,107,102,103,108,114,73,110,102,106,107,102,77,122,118,297,287,289,279,336,337,463,460,516,493,631,464,797,720,737,627,465,0,0,0,0,0,0,0,0]} 1. e4 {[%emt 0:00:03]} e5 {[%emt 0:00:02]} 2. Nf3 {[%emt 0:00:01]} Nc6 {[%emt 0:00:01]} 3. Bb5 {[%emt 0:00:02]} Nf6 {[%emt 0:00:03]} 4. d3 {[%emt 0:00:00]} Bc5 {[%emt 0:00:04]} 5. Nc3 {[%emt 0:00:05]} O-O {[%emt 0:00:27]} 6. Bg5 {[%emt 0:00:48][%cal Bc1g5,Bg5h4,Bh4f6][%mdl 32] C48: Four Knights: 4 Bb5, replies other than 4...Bb4.} h6 {[%emt 0:01:15]} 7. Bh4 {[%emt 0:00:18]} Re8 {[%emt 0:01:04]} 8. Qd2 {[%emt 0:01:09] [#]} a6 $146 {[%emt 0:00:20]} ({Predecessor:} 8... Nd4 9. Bc4 c6 10. O-O-O b5 11. Bb3 a5 12. a4 Bb4 13. Qe3 Nxb3+ 14. cxb3 bxa4 15. Nxa4 {0-1 (30) Kulon,K (2357)-Zawadzka,J (2427) Warsaw 2019}) 9. Bc4 {[%emt 0:00:22]} Na5 {[%emt 0:00:47]} (9... Be7 $11) 10. Bxf6 $16 {[%emt 0:03:19]} Nxc4 {[%emt 0:00:28]} 11. Bxd8 {[%emt 0:00:03]} Nxd2 {[%emt 0:00:15]} 12. Bxc7 {[%emt 0:00:03]} ({Don't play} 12. Kxd2 Rxd8 13. Nxe5 d6 $11) 12... Nxf3+ {[%emt 0:00:26]} 13. gxf3 {[%emt 0:00:02]} d6 {[%emt 0:01:08]} 14. Na4 {[%emt 0:01:39]} Bh3 {[%emt 0:01:00]} 15. Nxc5 {[%emt 0:00:24]} dxc5 {[%emt 0:00:02]} 16. Rg1 {[%emt 0:00:34] Against Bg2} a5 {[%emt 0:00:53]} 17. f4 {[%emt 0:01:42]} exf4 {[%emt 0:01:20]} 18. Bxf4 {[%emt 0:00:03]} Kh7 {[%emt 0:00:02]} 19. Rg3 {[%emt 0:00:36]} Bd7 {[%emt 0:00:24]} 20. O-O-O {[%emt 0:00:15]} Rac8 {[%emt 0:01:03]} 21. Rdg1 {[%emt 0:00:45] White is more active.} g6 {[%emt 0:00:16]} 22. Bd2 {[%emt 0:02:23]} a4 {[%emt 0:00:37]} 23. a3 {[%emt 0:00:46]} c4 {[%emt 0:01:04]} 24. Bc3 {[%emt 0:00:02]} cxd3 {[%emt 0:00:46]} 25. cxd3 {[%emt 0:00:02]} Rc5 {[%emt 0:00:28]} 26. f3 {[%emt 0:01:54]} Rec8 {[%emt 0:00:51]} 27. Kd2 {[%emt 0:00:17]} Rh5 {[%emt 0:00:13]} 28. R1g2 {[%emt 0:00:12]} Rh4 {[%emt 0:00:36]} 29. d4 {[%emt 0:00:43][%cal Bd3d4,Bd4d5][%mdl 32]} Rf4 {[%emt 0:01:57]} 30. Ke3 {[%emt 0:01:00]} Rf6 {[%emt 0:00:09]} (30... g5 $16 31. d5 Rh4) 31. d5 $18 {[%emt 0:00:46]} Rb6 {[%emt 0:00:07]} 32. h4 {[%emt 0:00:29]} h5 {[%emt 0:01:07]} 33. Rg5 {[%emt 0:01:10]} Rb3 {[%emt 0:00:25]} 34. Re5 {[%emt 0:00:42]} b5 {[%emt 0:01:09][%cal Ob5b4]} 35. Re7 {[%emt 0:00:16]} b4 {[%emt 0:00:32]} 36. axb4 {[%emt 0:00:56]} ({Less strong is} 36. Rxd7 bxc3 37. bxc3 (37. Rxf7+ $2 Kg8 $19) 37... Rcxc3+ 38. Kd4 Rd3+ 39. Kc5 Rdc3+ 40. Kd4 Rd3+ 41. Ke5 Rxf3 $16) 36... a3 {[%emt 0:00:02]} (36... Be8 $142 37. Kf4 a3) 37. Rxf7+ {[%emt 0:04:56]} Kg8 {[%emt 0:00:03]} 38. Rg7+ {[%emt 0:01:06]} Kf8 {[%emt 0:00:02] [#] aiming for ...axb2.} 39. R2xg6 $2 {[%emt 0:00:06]} (39. Rxd7 $18 axb2 {[#]} 40. Rxb2 $1 Rcxc3+ 41. Kd2) 39... axb2 $11 {[%emt 0:00:24] The position is equal.} 40. Rg8+ {[%emt 0:00:37]} Ke7 {[%emt 0:00:03] And now ...Rxg8 would win.} 41. d6+ {[%emt 0:00:28]} Kf7 {[%emt 0:00:01]} 42. R8g7+ {[%emt 0:00:10]} Kf8 {[%emt 0:00:16] Weighted Error Value: White=0.28 (precise) /Black=0.31} 1/2-1/2

[Event "Chinese League Div-A Rapid 2022"]
[Site "Fuling,Chongqing"]
[Date "2022.09.19"]
[Round "11.1"]
[White "Zhang, Zhong"]
[Black "Liu, Yan"]
[Result "1/2-1/2"]
[ECO "D79"]
[WhiteElo "2617"]
[BlackElo "2530"]
[Annotator "TA"]
[PlyCount "41"]
[EventDate "2022.09.07"]
[EventType "team-tourn"]
[EventCountry "CHN"]
[SourceTitle "playchess.com"]
[Source "ChessBase"]
[SourceQuality "1"]
[TimeControl "1500+10"]

{[%evp 25,41,8,23,7,8,7,12,-7,0,0,29,22,29,19,20,14,15,8]} 1. g3 {[%emt 0:00:15]} Nf6 {[%emt 0:00:42]} 2. Bg2 {[%emt 0:00:04]} g6 {[%emt 0:00:25]} 3. d4 {[%emt 0:00:41]} c5 {[%emt 0:01:14]} 4. Nf3 {[%emt 0:00:44]} Bg7 {[%emt 0:01:55]} 5. c3 {[%emt 0:01:07]} cxd4 {[%emt 0:01:15]} 6. cxd4 {[%emt 0:00:03]} d5 {[%emt 0:00:48]} 7. Nc3 {[%emt 0:00:17]} O-O {[%emt 0:01:36]} 8. O-O {[%emt 0:00:10]} Ne4 {[%emt 0:00:09]} 9. Ng5 {[%emt 0:00:18]} Nf6 {[%emt 0:01:09]} 10. Nf3 {[%emt 0:01:43]} Ne4 {[%emt 0:00:04]} 11. Ne5 {[%emt 0:01:03]} Nxc3 {[%emt 0:00:05]} 12. bxc3 {[%emt 0:00:02]} Nc6 {[%emt 0:00:02]} 13. Nxc6 {[%emt 0:00:50]} bxc6 {[%emt 0:00:03]} 14. Ba3 {[%emt 0:04:17] D79: Fianchetto Grünfeld: Symmetrical Variation (6 0-0 c6 7 cxd5 cxd5).} Ba6 {[%emt 0:01:28][%cal Bc8a6,Ba6c4,Bc4d5][%mdl 32]} 15. Re1 {[%emt 0:00:11]} Re8 {[%emt 0:01:46]} 16. e4 {[%emt 0:00:40]} e6 {[%emt 0:00:36]} 17. h4 {[%emt 0:02:27] [#]} dxe4 $5 $146 {[%emt 0:02:53][%mdl 8] An interesting novelty.} ({Predecessor:} 17... Bf8 18. Bxf8 Rxf8 19. Qa4 Bb5 20. Qa3 Re8 21. Rab1 Bd3 22. Rb7 Qc8 23. Rxa7 dxe4 24. Bxe4 Bxe4 25. Rxe4 Qb7 26. Rxb7 Rxa3 {1-0 (50) Karpov,A (2619)-Nyback,T (2586) Puhajarve 2013}) 18. Bxe4 {[%emt 0:00:16]} Qd7 {[%emt 0:00:13]} 19. Bc5 {[%emt 0:02:25]} Bc4 {[%emt 0:00:30]} 20. Qa4 {[%emt 0:01:00]} Bd5 {[%emt 0:00:05]} 21. Rab1 {[%emt 0:01:40] A rather calm draw.  Weighted Error Value: White=0.07 (flawless) /Black=0.06 (flawless)} 1/2-1/2